bitfinex-derivatives/quotes_SOLF0:USTF0_20260105
["timestamp","ask_amount","ask_price","bid_price","bid_amount"]
[1767598140438,6.661,135.19,135.13,1.9473202]
[1767598140739,6.6593,135.23,135.17,1.92284642]
[1767598141730,6.6583,135.25,135.17,1.92284642]
[1767598143642,6.6583,135.25,135.18,0.31783284]
[1767598143847,6.6583,135.25,135.19,1.92284642]
[1767598145538,36.93102675,135.27,135.2,0.31783284]
[1767598145733,103.5161,135.32,135.22,0.31783284]
[1767598145940,1.60501358,135.31,135.23,1.60501358]
[1767598147544,6.6563,135.29,135.23,1.60501358]
[1767598148342,1.60501358,135.31,135.24,0.31783284]
[1767598148343,8.26021358,135.31,135.24,0.31783284]
[1767598150243,6.6552,135.31,135.24,0.31783284]
[1767598150952,6.6543,135.33,135.24,0.31783284]
[1767598152254,6.6543,135.33,135.25,1.92284642]
[1767598153056,6.6543,135.33,135.26,0.31783284]
[1767598155165,0.04707316,135.31,135.28,0.05645128]
[1767598180193,0.04707316,135.31,135.28,0.38117117]
[1767598182797,6.6538,135.34,135.28,0.38117117]
[1767598188596,9.15816786,135.36,135.28,0.38117117]
[1767598188895,103.4694,135.38,135.29,0.32471989]
[1767598189300,6.6527,135.36,135.29,0.32471989]
[1767598189697,6.6527,135.36,135.32,0.05651097]
[1767598195107,6.6527,135.36,135.28,0.31043934]
[1767598201504,6.6527,135.36,135.29,0.32181187]
[1767598201800,6.6518,135.38,135.29,0.32181187]
[1767598202407,6.6522,135.37,135.3,0.32181187]
[1767598203211,6.6527,135.36,135.29,0.32181187]
[1767598210012,6.6519,135.38,135.29,0.32181187]
[1767598210308,103.4642,135.39,135.29,0.32181187]
[1767598211525,6.6514,135.39,135.3,0.32181187]
[1767598212213,6.6517,135.38,135.3,0.32181187]
[1767598212921,93.9909,135.4,135.31,0.32181187]
[1767598214221,6.6509,135.4,135.32,0.32181187]
[1767598218626,6.6509,135.4,135.33,0.32181187]
[1767598220219,6.6498,135.42,135.34,0.32181187]
[1767598223425,6.6502,135.41,135.34,0.32181187]
[1767598234527,8.25186475,135.4,135.32,0.31626184]
[1767598235432,6.6507,135.4,135.33,0.31626184]
[1767598236329,8.25116475,135.42,135.34,0.31626184]
[1767598236727,116.0136876,135.43,135.35,6.96906184]
[1767598238538,121.06172285,135.43,135.36,0.31626184]
[1767598238935,103.4047,135.47,135.37,0.31626184]
[1767598239236,1.60116475,135.45,135.37,0.31626184]
[1767598240535,8.24966475,135.45,135.37,0.31626184]
[1767598247441,6.6487,135.44,135.37,0.31626184]
[1767598248951,87.28,135.46,135.37,0.31626184]
[1767598249239,8.25046475,135.43,135.35,1.91742659]
[1767598253545,8.25046475,135.43,135.35,0.31626184]
[1767598253747,6.6497,135.42,135.35,0.31626184]
[1767598258049,1.60116475,135.43,135.35,0.31626184]
[1767598259144,8.25036475,135.43,135.35,0.31626184]
[1767598261145,8.25036475,135.43,135.35,6.96916184]
[1767598262053,8.24966475,135.45,135.37,0.33071417]
[1767598262449,87.28,135.46,135.37,0.33071417]
[1767598262644,87.28,135.46,135.39,0.33071417]
[1767598263552,6.6474,135.47,135.39,0.33071417]
[1767598273662,6.6474,135.47,135.4,1.93187892]
[1767598286390,6.6474,135.47,135.4,0.33071417]
[1767598286679,6.6474,135.47,135.39,6.6509]
[1767598286881,1.60116475,135.44,135.36,0.33071417]
[1767598288578,8.24986475,135.44,135.36,6.98311417]
[1767598288982,1.60116475,135.42,135.35,87.57071417]
[1767598290475,2.50148518,135.44,135.35,87.57071417]
[1767598290672,6.6493,135.43,135.35,87.57071417]
[1767598290883,2.50148518,135.44,135.35,87.24]
[1767598291087,2.50148518,135.42,135.35,87.24]
[1767598292085,6.6503,135.41,135.35,87.24]
[1767598293786,6.6503,135.41,135.33,6.6538]
[1767598294487,6.6503,135.41,135.33,6.96623074]
[1767598295589,103.4469,135.41,135.33,0.31243074]
[1767598295886,2.50148518,135.4,135.31,87.55243074]
[1767598296278,2.50148518,135.4,135.32,0.31243074]
[1767598296484,6.6512,135.39,135.32,0.31243074]
[1767598302786,6.6512,135.39,135.34,0.05420039]
[1767598303189,0.047368,135.38,135.34,0.05420039]
[1767598321312,0.047368,135.38,135.34,0.37898939]
[1767598329929,0.047368,135.38,135.34,0.05420039]
[1767598338733,0.047368,135.38,135.34,0.37898939]
[1767598343737,105.91438518,135.46,135.35,0.324789]
[1767598344043,5.92172399,135.45,135.35,0.324789]
[1767598344232,5.92172399,135.44,135.35,0.324789]
[1767598344429,105.91438518,135.46,135.35,0.324789]
[1767598344632,5.9193639,135.45,135.35,0.324789]
[1767598344934,105.91438518,135.46,135.35,0.324789]
[1767598345139,5.91936369,135.45,135.39,0.05018346]
[1767598345334,105.91438518,135.46,135.39,0.05018346]
[1767598345640,6.6487,135.44,135.39,0.05018346]
[1767598346926,6.6478,135.46,135.39,0.37497246]
[1767598349837,24.95609719,135.47,135.4,0.324789]
[1767598350634,24.95609719,135.47,135.42,0.05540596]
[1767598357848,26.55564744,135.47,135.38,1.92163476]
[1767598358550,6.6478,135.46,135.38,1.92163476]
[1767598359448,8.24795025,135.45,135.38,0.32208451]
[1767598360051,1.59955025,135.45,135.36,1.92163476]
[1767598361746,6.6494,135.43,135.37,0.32208451]
[1767598368154,6.6482,135.45,135.37,0.32208451]
[1767598370852,6.649,135.44,135.37,0.32208451]
[1767598371157,8.24855025,135.44,135.37,0.32208451]
[1767598372243,6.6493,135.43,135.35,1.91049756]
[1767598372442,1.59955025,135.42,135.35,0.31094731]
[1767598373556,8.24935025,135.42,135.35,0.31094731]
[1767598394976,103.4267,135.44,135.36,0.32493755]
[1767598394977,6.649,135.44,135.36,0.32493755]
[1767598395171,1.59955025,135.45,135.36,0.32493755]
[1767598395774,8.24775025,135.45,135.37,0.32493755]
[1767598402186,6.6487,135.44,135.37,0.32493755]
[1767598404295,8.24895025,135.43,135.35,1.59955025]
[1767598404593,8.24895025,135.43,135.35,0.32493755]
[1767598405292,1.59955025,135.43,135.35,0.32493755]
[1767598405595,6.6497,135.42,135.35,0.32493755]
[1767598408102,1.59955025,135.39,135.33,0.32493755]
[1767598409592,8.25065025,135.39,135.33,0.32493755]
[1767598412597,8.25065025,135.39,135.31,0.33023994]
[1767598414499,6.6519,135.38,135.31,0.33023994]
[1767598423013,6.6523,135.37,135.31,0.33023994]
[1767598425610,6.6514,135.39,135.31,0.33023994]
[1767598431720,6.6517,135.38,135.31,0.33023994]
[1767598437728,6.6517,135.38,135.31,87.61023994]
[1767598440624,6.6521,135.37,135.31,87.28]
[1767598442626,6.6521,135.37,135.31,87.61973562]
[1767598445028,103.4654,135.39,135.29,0.33973562]
[1767598445231,105.96025406,135.4,135.31,0.33973562]
[1767598446635,6.6519,135.38,135.31,0.33973562]
[1767598450736,6.6509,135.4,135.31,0.33973562]
[1767598451639,6.6509,135.4,135.33,0.33973562]
[1767598471454,103.4464,135.41,135.31,0.31168874]
[1767598471754,109.33802871,135.4,135.31,0.31168874]
[1767598471943,103.4541,135.4,135.31,0.31168874]
[1767598472552,6.6518,135.38,135.31,0.31168874]
[1767598481660,8.25277399,135.4,135.31,0.31168874]
[1767598483258,8.25277399,135.4,135.32,1.91356273]
[1767598483461,6.6509,135.4,135.33,0.31168874]
[1767598486160,6.6497,135.42,135.35,0.31168874]
[1767598494563,6.6497,135.42,135.34,8.25527399]
[1767598494961,6.6497,135.42,135.34,8.56714889]
[1767598495757,6.6497,135.42,135.34,0.3118749]
[1767598495964,8.25157399,135.42,135.34,0.3118749]
[1767598497462,6.6503,135.41,135.33,1.60187399]
[1767598500570,6.6503,135.41,135.32,6.9659749]
[1767598500768,8.25257399,135.4,135.32,0.3118749]
[1767598505875,8.25257399,135.4,135.32,6.9662749]
[1767598506076,8.25177399,135.42,135.34,0.33352105]
[1767598510982,8.25177399,135.42,135.35,0.33352105]
[1767598511281,27.0100863,135.43,135.36,0.33352105]
[1767598514678,27.0100863,135.43,135.37,1.60187399]
[1767598514984,27.0100863,135.43,135.38,0.33352105]
[1767598522892,26.95101677,135.43,135.39,1.93539504]
[1767598523089,1.60187399,135.48,135.39,1.93539504]
[1767598523090,8.24877399,135.48,135.4,0.33352105]
[1767598523389,6.6469,135.48,135.41,1.93539504]
[1767598530693,6.6469,135.48,135.4,6.97847584]
[1767598530890,6.6469,135.48,135.4,8.58034983]
[1767598534695,6.6469,135.48,135.41,0.32817584]
[1767598536597,88.86187399,135.49,135.41,0.32817584]
[1767598536803,6.6474,135.47,135.39,8.58094983]
[1767598537603,6.6474,135.47,135.4,0.32817584]
[1767598539806,6.6474,135.47,135.38,87.24]
[1767598539807,6.6477,135.46,135.38,87.56817584]
[1767598541607,6.6477,135.46,135.38,94.21957584]
[1767598541809,6.6477,135.46,135.39,0.32817584]
[1767598561120,103.4024,135.47,135.38,87.24]
[1767598561321,105.90213331,135.47,135.37,0.31815728]
[1767598561514,105.91753331,135.45,135.35,0.31815728]
[1767598562624,6.6497,135.42,135.35,0.31815728]
[1767598565631,6.6502,135.41,135.34,87.24]
[1767598566230,6.6502,135.41,135.34,87.55815728]
[1767598568432,6.6502,135.41,135.35,0.31815728]
[1767598574336,6.6502,135.41,135.34,87.24]
[1767598574938,6.6502,135.41,135.34,87.55815728]
[1767598578939,6.6502,135.41,135.35,0.31815728]
[1767598588848,6.6495,135.43,135.35,0.31815728]
[1767598590556,6.6497,135.42,135.35,0.31815728]
[1767598600469,6.6497,135.42,135.35,1.91904374]
[1767598611570,6.6497,135.42,135.35,1.60088646]
[1767598614877,6.6497,135.42,135.34,94.21268286]
[1767598615176,6.6497,135.42,135.34,95.81356932]
[1767598615880,6.6497,135.42,135.34,94.21268286]
[1767598616075,6.6497,135.42,135.34,95.81356932]
[1767598617477,6.6497,135.42,135.34,8.57356932]
[1767598617675,6.6502,135.41,135.34,0.31928286]
[1767598621485,6.6494,135.43,135.35,1.91428009]
[1767598631794,29.57777971,135.45,135.38,0.31339363]
[1767598632094,22.92927971,135.45,135.39,1.91428009]
[1767598643006,29.57747971,135.45,135.39,1.91428009]
[1767598643206,29.57747971,135.45,135.39,1.60088646]
[1767598644895,6.6487,135.44,135.37,1.91428009]
[1767598646298,6.6487,135.44,135.38,0.31339363]
[1767598646502,22.92927971,135.45,135.38,0.31339363]
[1767598646702,22.92927971,135.45,135.39,1.91428009]
[1767598650122,22.92927971,135.45,135.39,0.31339363]
[1767598651023,22.92927971,135.45,135.41,0.31780832]
[1767598658723,22.92927971,135.45,135.4,1.60088646]
[1767598659033,22.92927971,135.45,135.4,1.91869478]
[1767598661539,22.92927971,135.45,135.42,1.60088646]
[1767598662041,22.92927971,135.45,135.4,1.91869478]
[1767598662636,22.92927971,135.45,135.4,0.31780832]
[1767598662938,21.72007042,135.45,135.4,0.31780832]
[1767598680252,6.6469,135.48,135.4,0.31780832]
[1767598680444,6.6469,135.48,135.4,6.96820832]
[1767598700765,6.6469,135.48,135.41,0.33207891]
[1767598710766,6.6469,135.48,135.4,6.6504]
[1767598711264,6.6469,135.48,135.4,6.98514457]
[1767598714675,6.6469,135.48,135.41,0.33474457]
[1767598724489,8.24637911,135.48,135.41,0.33474457]
[1767598727893,6.6472,135.47,135.39,0.33474457]
[1767598728092,1.59947911,135.46,135.39,0.33474457]
[1767598728486,8.24717911,135.46,135.39,0.33474457]
[1767598732994,1.59947911,135.46,135.39,0.33474457]
[1767598733392,103.3733,135.51,135.4,1.92048952]
[1767598733598,1.59947911,135.49,135.41,0.32101041]
[1767598733796,6.6465,135.49,135.41,0.32101041]
[1767598733984,8.24597911,135.49,135.41,0.32101041]
[1767598734394,6.6465,135.49,135.41,0.32101041]
[1767598734594,8.24597911,135.49,135.41,0.32101041]
[1767598738190,1.59947911,135.47,135.41,0.32101041]
[1767598740603,6.6453,135.51,135.42,0.32847746]
[1767598740905,8.24477911,135.51,135.43,0.32847746]
[1767598741809,6.6453,135.51,135.43,0.32847746]
[1767598743800,103.377,135.51,135.41,0.32847746]
[1767598744000,1.59947911,135.48,135.41,0.32847746]
[1767598747509,6.6463,135.49,135.42,0.32847746]
[1767598747809,1.59947911,135.5,135.42,0.32847746]
[1767598748612,1.59947911,135.5,135.42,6.97787746]
[1767598755030,1.59947911,135.5,135.44,0.32847746]
[1767598755328,8.24537911,135.5,135.41,0.32847746]
[1767598756520,8.24537911,135.5,135.41,6.97827746]
[1767598756824,8.24537911,135.5,135.42,0.32847746]
[1767598762531,6.6459,135.5,135.42,0.32847746]
[1767598762827,1.59947911,135.49,135.42,0.32847746]
[1767598763531,1.59947911,135.49,135.42,6.97797746]
[1767598764234,8.24457911,135.52,135.44,0.32847746]
[1767598765629,8.24457911,135.52,135.44,6.97687746]
[1767598767726,8.24457911,135.52,135.45,0.32847746]
[1767598769927,6.6451,135.52,135.45,0.32847746]
[1767598776538,6.6454,135.51,135.44,1.59947911]
[1767598776838,8.24487911,135.51,135.43,0.30973309]
[1767598778042,6.6458,135.5,135.43,0.30973309]
[1767598779936,8.24587911,135.49,135.43,0.30973309]
[1767598780433,6.6468,135.48,135.41,87.50973309]
[1767598794653,6.6474,135.47,135.42,0.31850241]
[1767598795249,2.49943426,135.5,135.42,0.31850241]
[1767598795453,22.93949149,135.53,135.42,0.31850241]
[1767598796252,29.58399149,135.53,135.44,0.31850241]
[1767598797260,6.6449,135.52,135.44,0.31850241]
[1767598800664,103.3632,135.52,135.44,0.31850241]
[1767598800854,103.3632,135.52,135.42,0.33447538]
[1767598801564,6.6459,135.5,135.42,0.33447538]
[1767598815378,6.6453,135.51,135.44,0.33447538]
[1767598815584,22.93949149,135.53,135.44,0.33447538]
[1767598816577,29.58409149,135.53,135.45,0.33447538]
[1767598830889,6.6448,135.52,135.45,0.33447538]
[1767598835393,6.6454,135.51,135.45,0.33447538]
[1767598838195,2.49943426,135.5,135.41,0.30867071]
[1767598838891,126.29919149,135.53,135.42,0.30867071]
[1767598838892,22.93949149,135.53,135.42,0.30867071]
[1767598839094,5.81052182,135.52,135.42,0.30867071]
[1767598839394,22.93949149,135.53,135.42,0.30867071]
[1767598839589,5.81178532,135.52,135.42,0.30867071]
[1767598839791,22.93949149,135.53,135.42,0.30867071]
[1767598839991,5.81178532,135.52,135.42,0.30867071]
[1767598840192,22.93949149,135.53,135.42,0.30867071]
[1767598840396,5.81342962,135.52,135.42,0.30867071]
[1767598840596,6.6453,135.51,135.43,0.30867071]
[1767598846601,6.6453,135.51,135.44,1.90698023]
[1767598848900,29.58369149,135.53,135.45,0.30867071]
[1767598850410,6.6442,135.53,135.45,0.30867071]
[1767598851807,6.6435,135.55,135.46,1.92312887]
[1767598852107,6.6435,135.55,135.47,0.32481935]
[1767598854008,6.6435,135.55,135.48,1.92312887]
[1767598854603,6.6423,135.57,135.49,0.32481935]
[1767598854807,103.2965,135.61,135.51,0.32481935]
[1767598855009,7.41049407,135.6,135.51,0.32481935]
[1767598855204,1.59830952,135.6,135.51,0.32481935]
[1767598856702,6.6416,135.59,135.51,0.32481935]
[1767598858012,8.23870952,135.61,135.51,0.32481935]
[1767598858212,8.23870952,135.61,135.52,1.92312887]
[1767598858606,1.59830952,135.63,135.54,1.92312887]
[1767598859309,1.59830952,135.61,135.54,0.32481935]
[1767598859513,1.59830952,135.61,135.52,1.92312887]
[1767598860411,1.59830952,135.61,135.53,0.32481935]
[1767598860613,8.23880952,135.61,135.53,0.32481935]
[1767598862515,8.23790952,135.63,135.54,1.92940939]
[1767598862716,8.23790952,135.63,135.54,0.33109987]
[1767598863217,1.59830952,135.61,135.52,0.33109987]
[1767598864418,1.59830952,135.59,135.52,0.33109987]
[1767598866220,6.6405,135.61,135.52,0.33109987]
[1767598866418,1.59830952,135.6,135.52,0.33109987]
[1767598871527,6.6405,135.61,135.52,0.33109987]
[1767598871722,8.23880952,135.61,135.52,0.33109987]
[1767598872120,6.6405,135.61,135.53,0.33109987]
[1767598872422,8.23880952,135.61,135.53,0.33109987]
[1767598872720,8.23780952,135.63,135.54,0.33109987]
[1767598873026,6.6395,135.63,135.54,0.33109987]
[1767598873225,8.23780952,135.63,135.54,0.33109987]
[1767598873425,8.23780952,135.63,135.55,0.33109987]
[1767598888948,1.59830952,135.62,135.55,0.33109987]
[1767598890846,1.59830952,135.6,135.53,0.32443197]
[1767598892452,1.59830952,135.6,135.53,6.96843197]
[1767598892649,1.59830952,135.6,135.54,0.32443197]
[1767598903065,6.64,135.62,135.54,0.32443197]
[1767598903259,6.639,135.64,135.55,0.32443197]
[1767598903462,6.639,135.64,135.57,0.32443197]
[1767598903764,1.59830952,135.65,135.57,0.32443197]
[1767598904165,23.05411247,135.69,135.59,0.32443197]
[1767598904363,5.80750257,135.68,135.61,0.32443197]
[1767598904559,24.65242199,135.69,135.61,0.32443197]
[1767598906560,29.69071247,135.69,135.61,0.32443197]
[1767598907963,9.12882791,135.68,135.59,0.32443197]
[1767598912865,6.6371,135.68,135.59,0.32443197]
[1767598915369,9.12882791,135.68,135.59,0.32443197]
[1767598918073,6.6375,135.67,135.59,0.32443197]
[1767598919070,6.6375,135.67,135.56,6.6425]
[1767598919071,2.49172791,135.66,135.56,6.6425]
[1767598919271,2.49172791,135.66,135.55,0.33268828]
[1767598920564,6.639,135.64,135.55,0.33268828]
[1767598920765,2.49172791,135.64,135.55,0.33268828]
[1767598921367,6.6397,135.63,135.55,0.33268828]
[1767598923374,6.6399,135.62,135.55,0.33268828]
[1767598924774,6.6404,135.61,135.53,0.32592064]
[1767598925370,6.6409,135.6,135.53,0.32592064]
[1767598925776,105.78292791,135.62,135.52,87.12]
[1767598926080,105.79612791,135.6,135.49,0.32592064]
[1767598927573,6.6424,135.57,135.49,0.32592064]
[1767598931378,6.6416,135.59,135.49,0.32592064]
[1767598933476,6.642,135.58,135.49,0.32592064]
[1767598934279,6.642,135.58,135.49,6.97192064]
[1767598934682,6.642,135.58,135.5,0.32592064]
[1767598948100,6.642,135.58,135.51,0.32592064]
[1767598950004,6.641,135.6,135.52,0.32592064]
[1767598954705,6.641,135.6,135.51,9.13672791]
[1767598954706,87.12,135.61,135.53,0.31839363]
[1767598955709,87.12,135.61,135.53,6.96249363]
[1767598956996,6.64,135.62,135.53,6.96249363]
[1767598957605,6.64,135.62,135.54,0.31839363]
[1767598957801,6.6391,135.64,135.55,0.31839363]
[1767598959007,6.6391,135.64,135.56,0.31839363]
[1767598959703,93.7981,135.66,135.56,0.31839363]
[1767598966013,6.6386,135.65,135.56,0.31839363]
[1767598967406,2.49172791,135.65,135.54,0.31839363]
[1767598968514,1.59588884,135.64,135.55,1.91428247]
[1767598968706,6.6395,135.63,135.55,1.91428247]
[1767598972519,1.59588884,135.64,135.55,1.91428247]
[1767598972725,1.59588884,135.64,135.56,0.32091266]
[1767598975624,8.23478884,135.64,135.56,0.32091266]
[1767598981726,1.59588884,135.62,135.54,0.31499253]
[1767598982528,1.59588884,135.62,135.57,0.05118024]
[1767598983533,8.23598884,135.62,135.57,0.05118024]
[1767598984732,1.59588884,135.6,135.57,0.05118024]
[1767598989536,1.59588884,135.6,135.53,87.14]
[1767598990230,1.59588884,135.58,135.53,87.14]
[1767598990437,1.59588884,135.58,135.5,6.96059253]
[1767598993640,6.6415,135.59,135.51,0.31499253]
[1767599023279,6.6415,135.59,135.52,0.30900548]
[1767599023773,1.59588884,135.6,135.53,0.30900548]
[1767599023962,1.59588884,135.61,135.53,0.30900548]
[1767599024166,1.59588884,135.61,135.54,0.30900548]
[1767599024877,8.23558884,135.63,135.55,0.30900548]
[1767599026570,87.16,135.64,135.56,0.30900548]
[1767599026777,6.6387,135.65,135.56,0.30900548]
[1767599026980,8.23458884,135.65,135.56,0.30900548]
[1767599027173,8.23458884,135.65,135.59,0.05406451]
[1767599028372,6.6389,135.64,135.59,0.05406451]
[1767599030878,6.6399,135.62,135.54,6.95240548]
[1767599034482,6.6399,135.62,135.54,0.30900548]
[1767599040980,103.2815,135.63,135.52,87.48106829]
[1767599041186,198.73285065,135.62,135.52,0.32106829]
[1767599041382,0.04891297,135.59,135.52,0.32106829]
[1767599042684,6.69031297,135.59,135.52,0.32106829]
[1767599050104,0.04891297,135.59,135.53,0.32106829]
[1767599059819,6.69021297,135.59,135.53,0.32106829]
[1767599063422,0.04891297,135.59,135.53,0.32106829]
[1767599064425,0.04891297,135.59,135.54,0.32106829]
[1767599081337,0.04891297,135.59,135.55,0.31562121]
[1767599081536,6.6391,135.64,135.55,0.31562121]
[1767599081944,6.6391,135.64,135.57,0.31562121]
[1767599082842,6.6391,135.64,135.59,0.04653073]
[1767599087246,8.1191,135.64,135.59,0.04653073]
[1767599087842,6.6384,135.65,135.59,0.36215194]
[1767599088046,112.72596791,135.68,135.59,0.36215194]
[1767599088234,5.799068,135.67,135.59,0.36215194]
[1767599088438,112.72596791,135.68,135.59,0.31562121]
[1767599088645,5.79840744,135.67,135.59,0.31562121]
[1767599088846,112.72596791,135.68,135.62,0.05181424]
[1767599089042,5.79840744,135.67,135.62,0.05181424]
[1767599089242,112.72596791,135.68,135.62,0.05181424]
[1767599089444,6.6375,135.67,135.62,0.05181424]
[1767599089642,110.23231292,135.68,135.62,0.05181424]
[1767599090547,111.82732333,135.68,135.62,0.05181424]
[1767599091544,118.46432333,135.68,135.62,0.05181424]
[1767599093550,6.6376,135.67,135.62,0.05181424]
[1767599093749,1.64950567,135.66,135.59,0.32404689]
[1767599100362,1.59501041,135.64,135.57,0.32404689]
[1767599100564,1.59501041,135.62,135.55,0.32404689]
[1767599101363,1.59501041,135.6,135.53,0.33661795]
[1767599101655,1.59501041,135.62,135.53,0.33661795]
[1767599102555,1.59501041,135.62,135.54,0.33661795]
[1767599102850,6.6396,135.63,135.54,0.33661795]
[1767599103055,6.6396,135.63,135.55,0.33661795]
[1767599103247,6.6396,135.63,135.57,0.05213612]
[1767599108360,1.59501041,135.62,135.57,0.05213612]
[1767599109856,8.23501041,135.62,135.57,0.05213612]
[1767599116552,6.64,135.62,135.57,0.05213612]
[1767599116756,1.59501041,135.61,135.57,0.05213612]
[1767599119966,6.6391,135.64,135.57,0.38875407]
[1767599120168,1.59501041,135.63,135.57,0.38875407]
[1767599120370,1.59501041,135.63,135.57,0.33661795]
[1767599120764,1.59501041,135.63,135.59,0.05544228]
[1767599121767,1.59501041,135.65,135.59,0.05544228]
[1767599121972,1.59501041,135.65,135.59,0.39206023]
[1767599123874,8.23341041,135.65,135.59,0.05544228]
[1767599124462,6.6389,135.64,135.59,0.05544228]
[1767599126772,95.37311041,135.66,135.59,0.05544228]
[1767599131788,6.6386,135.65,135.59,0.05544228]
[1767599134788,6.6386,135.65,135.59,0.36765685]
[1767599141894,1.59501041,135.64,135.59,0.36765685]
[1767599142096,1.59501041,135.64,135.59,0.05544228]
[1767599143796,8.23391041,135.64,135.59,0.05544228]
[1767599146697,1.59501041,135.64,135.59,0.05544228]
[1767599152613,6.6387,135.65,135.59,0.05544228]
[1767599176438,6.6389,135.64,135.59,0.05544228]
[1767599184446,6.6395,135.63,135.59,0.05544228]
[1767599184639,6.69099887,135.63,135.57,0.33868492]
[1767599185342,192.17950073,135.66,135.57,0.33868492]
[1767599186642,192.17950073,135.66,135.6,0.04813213]
[1767599186643,6.6395,135.63,135.6,0.04813213]
[1767599187750,6.6385,135.65,135.6,0.04813213]
[1767599190953,6.6385,135.65,135.57,0.33868492]
[1767599194047,0.04712643,135.62,135.57,0.33868492]
[1767599198755,0.04712643,135.62,135.55,0.32331059]
[1767599199857,6.68702643,135.62,135.55,0.32331059]
[1767599208571,6.641,135.6,135.53,0.32331059]
[1767599209265,6.64,135.62,135.54,0.32331059]
[1767599209670,0.05031166,135.59,135.54,0.32331059]
[1767599213475,6.6391,135.64,135.55,0.32954666]
[1767599213773,6.6391,135.64,135.56,0.32954666]
[1767599214469,6.6391,135.64,135.56,1.92532739]
[1767599214862,6.6391,135.64,135.59,0.05365603]
[1767599218570,6.6394,135.63,135.59,0.05365603]
[1767599220673,6.6399,135.62,135.59,0.05365603]
[1767599220877,6.68655922,135.62,135.56,0.32954666]
[1767599225992,6.68655922,135.62,135.52,1.59578073]
[1767599225993,104.88978073,135.61,135.52,1.59578073]
[1767599226188,192.02978073,135.61,135.51,0.3343442]
[1767599226987,0.04824037,135.57,135.51,0.3343442]
[1767599227887,0.04824037,135.57,135.52,0.3343442]
[1767599228094,88.73578073,135.61,135.53,0.3343442]
[1767599228390,87.14,135.61,135.53,0.38103321]
[1767599229689,93.7804,135.61,135.53,0.38103321]
[1767599230799,1.59578073,135.6,135.53,0.38103321]
[1767599230995,8.23668073,135.6,135.53,0.38103321]
[1767599233498,6.6409,135.6,135.53,0.38103321]
[1767599233688,8.23668073,135.6,135.53,0.38103321]
[1767599235500,6.6409,135.6,135.53,0.38103321]
[1767599241302,8.23718073,135.59,135.53,0.04668901]
[1767599244704,6.6421,135.58,135.53,0.04668901]
[1767599244902,1.59578073,135.57,135.53,0.04668901]
[1767599249103,8.23818073,135.57,135.53,0.04668901]
[1767599249300,0.04925349,135.56,135.49,0.3343442]
[1767599249498,1.59578073,135.55,135.49,0.3343442]
[1767599249693,1.59578073,135.55,135.47,0.3343442]
[1767599250695,0.0525429,135.52,135.47,0.3343442]
[1767599254799,93.8028,135.56,135.48,0.31520666]
[1767599254999,93.8028,135.56,135.48,0.36969763]
[1767599266716,87.16,135.56,135.48,0.36969763]
[1767599267024,6.6421,135.58,135.5,0.31520666]
[1767599267820,6.6421,135.58,135.53,0.05606349]
[1767599270626,6.6424,135.57,135.53,0.05606349]
[1767599271125,6.69371979,135.57,135.5,0.31520666]
[1767599280938,6.6428,135.56,135.48,0.32731786]
[1767599281736,0.05653714,135.53,135.48,0.32731786]
[1767599301949,0.05653714,135.53,135.46,0.32731786]
[1767599302551,6.70093714,135.53,135.46,0.32731786]
[1767599304150,105.86113469,135.52,135.44,0.32731786]
[1767599304457,2.49593469,135.5,135.44,0.32731786]
[1767599304850,2.49593469,135.52,135.44,0.32731786]
[1767599305051,0.05387243,135.48,135.44,0.32731786]
[1767599311757,0.05387243,135.48,135.42,0.31803395]
[1767599312860,0.05387243,135.48,135.43,6.6489]
[1767599313060,6.6454,135.51,135.44,0.37455274]
[1767599313962,107.12300755,135.55,135.44,0.37455274]
[1767599314264,6.6443,135.53,135.45,0.31803395]
[1767599314853,6.6443,135.53,135.48,0.04691618]
[1767599320664,6.6448,135.52,135.48,0.04691618]
[1767599320861,6.6448,135.52,135.46,0.31803395]
[1767599322477,6.6448,135.52,135.44,0.31803395]
[1767599322778,0.04649215,135.5,135.44,0.31803395]
[1767599323671,6.69229215,135.5,135.44,0.31803395]
[1767599339688,6.6464,135.49,135.44,0.31803395]
[1767599345890,6.6464,135.49,135.41,95.44904616]
[1767599346097,6.6464,135.49,135.42,0.32085464]
[1767599346496,6.6468,135.48,135.42,0.32085464]
[1767599346997,0.04965527,135.46,135.42,0.32085464]
[1767599348907,0.04965527,135.46,135.4,0.32085464]
[1767599349105,1.59904616,135.45,135.38,0.32085464]
[1767599349700,0.04842742,135.43,135.38,0.32085464]
[1767599354203,0.04842742,135.43,135.36,0.32085464]
[1767599355600,6.6499,135.42,135.36,0.32085464]
[1767599360515,6.6499,135.42,135.35,117.06912202]
[1767599361216,6.6503,135.41,135.34,87.56085464]
[1767599361415,0.04929805,135.4,135.34,87.56085464]